Cogmind - Beta 13 @@@ ROGUE MODE // 2024.06.29 @ 20:27:56 Player: CONNOR_M Result: Destroyed by as-09500 with Assembled Blade Performance ------------- Evolutions (0) 0 Regions Visited (4) 800 Robots Destroyed (24) 120 Value Destroyed (669) 669 Prototype IDs (23) 460 Alien Tech Used (0) 0 Bonus (107) 107 TOTAL SCORE: 2156 Bonus ------- Aligned with FarCom 300 Friendly Fire -193 Cogmind --------- Core Integrity 0/250 Matter 66/300 Energy 60/160 System Corruption 1% Temperature Cool (76) Movement Rolling (135) Ox3 Location -9/Mines Parts ------- > --- POWER (1) -------- Light Nuclear Core > --- PROPULSION (2) --- Armored Wheel Armored Wheel > --- UTILITY (2) ------ Huge Storage Unit Structural Scanner > --- WEAPON (2) ------- Small Laser Shock Bomb Launcher > --- INVENTORY (25) --- Light Ion Engine Light Ion Engine Deuterium Engine Armored Wheel Armored Wheel Medium Storage Unit Medium Matter Pod (0) Trap Scanner Terrain Scan Processor Targeting Computer Cloak of Protection Improved Propulsion Shielding Hardlight Generator Tractor Beam Field Recycling Unit (0) Peak State ------------ > --- POWER ------------ Light Nuclear Core > --- PROPULSION ------- Armored Wheel Armored Wheel > --- UTILITY ---------- Huge Storage Unit Structural Scanner > --- WEAPON ----------- Small Laser Shock Bomb Launcher > --- INVENTORY -------- Light Ion Engine Light Ion Engine Deuterium Engine Armored Wheel Armored Wheel Medium Storage Unit Medium Matter Pod Trap Scanner Terrain Scan Processor Targeting Computer Cloak of Protection Improved Propulsion Shielding Hardlight Generator Tractor Beam Field Recycling Unit [Rating: 16] Favorites ----------- Power Light Ion Engine Engine Light Ion Engine Power Core Light Nuclear Core Propulsion Armored Wheel Treads Light Treads Wheel Armored Wheel Utility Seismic Detector Device Seismic Detector Storage Huge Storage Unit Weapon Assault Rifle Energy Gun Small Laser Ballistic Gun Assault Rifle Ballistic Cannon Light Cannon Launcher Grenade Launcher Build | -11 -10 -10 -10 -9 ------- Run | Yrd Mat Min Exi Min Slots Evolved . | . . . . . Power . | . . . . . Propulsion . | . . . . . Utility . | . . . . . Weapon . | . . . . . Parts Attached 21 | 7 9 1 . 4 Power 4 | 1 2 . . 1 Engine 3 | 1 2 . . . Core 1 | . . . . 1 Reactor . | . . . . . Propulsion 4 | 2 2 . . . Treads 2 | 2 . . . . Leg . | . . . . . Wheel 2 | . 2 . . . Hover . | . . . . . Flight . | . . . . . Utility 4 | 2 1 1 . . Device 2 | 1 . 1 . . Storage 2 | 1 1 . . . Processor . | . . . . . Hackware . | . . . . . Protection . | . . . . . Artifact . | . . . . . Weapon 9 | 2 4 . . 3 Energy Gun 3 | 1 1 . . 1 Energy Cannon . | . . . . . Ballistic Gun 2 | 1 1 . . . Ballistic Cannon 1 | . 1 . . . Launcher 3 | . 1 . . 2 Special Weapon . | . . . . . Impact Weapon . | . . . . . Slashing Weapon . | . . . . . Piercing Weapon . | . . . . . Special Melee Weapon . | . . . . . Unidentified Prototypes . | . . . . . Parts Lost 9 | . 6 1 . 2 Power 3 | . 2 . . 1 Propulsion 2 | . 2 . . . Utility 1 | . . 1 . . Weapon 3 | . 2 . . 1 Highest Loss Streak 5 | . 5 1 . 2 To Critical Strikes . | . . . . . Average Slot Usage (%) 91 | . 94 98 71 87 Engine 11 | . 10 14 14 2 Treads 10 | . 19 . . . Wheel 17 | . 8 28 28 28 Device 13 | . 14 12 14 14 Storage 14 | . 14 14 14 14 Energy Gun 6 | . 5 14 . 11 Ballistic Gun 5 | . 9 . . . Ballistic Cannon 4 | . 7 . . . Launcher 5 | . 4 14 . 4 Naked Turns . | . . . . . Heaviest Build 93 | 15 88 88 84 93 Greatest Support 40 | 40 40 24 24 24 Greatest Overweight (x) 3 | . 3 3 3 3 Average Overweight (x) 1 | . 1 3 3 3 Largest Inventory Capacity 25 | 8 25 25 25 25 Average Capacity 17 | 7 12 25 25 25 Most Carried 19 | 3 8 16 19 18 Average Carried 9 | 2 7 10 18 16 Final Capacity 25 | 8 25 25 25 25 Final Carried 19 | 3 8 16 19 15 Class Distribution -------------------- 100% | Mutant Dominant Class ---------------- Mutant | -10/Materials Mutant | -10/Mines Mutant | -10/Exiles Mutant | -9/Mines Resources | -11 -10 -10 -10 -9 ----------- Run | Yrd Mat Min Exi Min Matter Collected 547 | 248 208 74 . 17 Remotely . | . . . . . Salvage Created 500 | 14 275 88 . 123 Parts 34 | 2 12 16 . 4 Haulers Intercepted 1 | . 1 . . . Recyclers Shooed . | . . . . . Parts Field Recycled . | . . . . . Retrieved Matter . | . . . . . Parts Self-Destructed . | . . . . . Prevented . | . . . . . Kills | -11 -10 -10 -10 -9 ------- Run | Yrd Mat Min Exi Min Combat Hostiles Destroyed 20 | . 8 8 . 4 Guns 6 | . 5 . . 1 Cannons 1 | . 1 . . . AOE 13 | . 2 8 . 3 Classes Destroyed 10 | 1 3 2 . 4 Builder 1 | . . 1 . . Tunneler 1 | 1 . . . . Hauler 1 | . 1 . . . Watcher 1 | . 1 . . . Swarmer 6 | . . 6 . . Grunt 11 | . 8 2 . 1 Brawler 1 | . . . . 1 Zionite 1 | . . . . 1 Assembled 2 | . . . . 2 Guerrilla 1 | . . . . 1 Best Kill Streak 3 | 1 2 3 . 2 Combat Bots Only 3 | . 2 3 . 2 Max Kills in Single Turn 3 | 1 1 3 . 2 Gunslinging . | . . . . . Exploded 3 | . 1 3 . 2 Melee . | . . . . . Uniques/NPCs Destroyed . | . . . . . Combat | -11 -10 -10 -10 -9 -------- Run | Yrd Mat Min Exi Min Hostile Shots Fired 100 | . 82 12 . 6 Missed 29 | . 24 4 . 1 Damage Taken 1176 | . 921 84 . 171 Core 263 | . 215 . . 48 Absorbed by Shields . | . . . . . Core Remaining (%) 100 | 100 . . . . Volleys Fired 58 | 1 43 9 . 5 Largest 2 | 2 2 2 . 2 Hottest 76 | 60 60 70 . 76 Shots Fired 100 | 2 73 17 . 8 Gun 51 | 2 36 9 . 4 Cannon 33 | . 33 . . . Launcher 16 | . 4 8 . 4 Special . | . . . . . Kinetic 64 | 1 63 . . . Thermal 18 | . 5 9 . 4 Explosive 13 | . 4 8 . 1 Electromagnetic 5 | 1 1 . . 3 Robot Hit Streak 13 | 1 13 3 . 4 Robot Miss Streak 2 | 1 2 . . 1 Penetration Max . | . . . . . Secondary Targets . | . . . . . Shots Hit Robots 50 | 1 44 2 . 3 Core Hits 43 | 1 19 11 . 12 Critical Kills . | . . . . . Critical Parts Destroyed . | . . . . . Critical Strikes . | . . . . . Melee Attacks . | . . . . . Impact . | . . . . . Slashing . | . . . . . Piercing . | . . . . . Sneak Attacks . | . . . . . Combat Hostiles . | . . . . . Follow-up Attacks . | . . . . . Damage Inflicted 1773 | 12 813 349 . 599 Guns 393 | 12 323 34 . 24 Cannons 320 | . 320 . . . Explosions 1060 | . 170 315 . 575 Melee . | . . . . . Ramming . | . . . . . Kinetic 602 | 12 590 . . . Thermal 304 | . 31 34 . 239 Explosive 570 | . 170 315 . 85 Electromagnetic 297 | . 22 . . 275 Impact . | . . . . . Slashing . | . . . . . Piercing . | . . . . . Highest Corruption 1 | . 1 1 1 1 Average Corruption 1 | . 1 1 1 1 Corruption Purged . | . . . . . Corruption Blocked . | . . . . . Effects 15 | . 12 2 1 . Message Errors 3 | . 3 . . . Matter Fused 6 | . 5 1 . . Heat Flow Errors 1 | . 1 . . . Energy Discharges 3 | . 1 1 1 . Data Loss (minor) 2 | . 2 . . . Overload Shots . | . . . . . Overflow Damage 57 | . . 28 . 29 Projectiles . | . . . . . Explosions 57 | . . 28 . 29 Melee . | . . . . . Knockbacks 15 | . 15 . . . Impact . | . . . . . Kinetic 12 | . 12 . . . Secondary 3 | . 3 . . . Self-Inflicted Damage 95 | . 11 . . 84 Shots 5 | . 1 . . 4 Rammed . | . . . . . Targets Rammed . | . . . . . Kicked . | . . . . . Crushed . | . . . . . Highest Temperature 161 | . 161 63 . 76 Average Temperature 44 | . 54 24 . 28 Received Heat Transfer 455 | . 399 36 . 20 Siege Activations . | . . . . . Robots Corrupted . | . . . . . Combat Hostiles . | . . . . . Parts Fried . | . . . . . Impact Corruptions . | . . . . . Robots Melted . | . . . . . Combat Hostiles . | . . . . . Parts Melted . | . . . . . Heat Transferred 550 | . 75 75 . 400 Parts Sabotaged . | . . . . . Parts Stolen . | . . . . . Parts Stripped . | . . . . . Power Chain Reactions . | . . . . . Alert | -11 -10 -10 -10 -9 ------- Run | Yrd Mat Min Exi Min Peak Influence 296 | 5 215 296 . 211 Initial 33 | . 3 33 . . Average 96 | 1 65 183 . 197 Maximum Alert Level 1 | . 1 1 . 1 Low Security (%) 78 | 100 93 43 . 34 Level 1 21 | . 6 56 . 65 Level 2 . | . . . . . Level 3 . | . . . . . Level 4 . | . . . . . Level 5 . | . . . . . High Security . | . . . . . Max Security . | . . . . . Squads Dispatched 2 | . 1 1 . . Investigation 1 | . . 1 . . Extermination . | . . . . . Reinforcement 1 | . 1 . . . Assault . | . . . . . Garrison . | . . . . . Intercept . | . . . . . Searches Triggered . | . . . . . Construction Impeded . | . . . . . Haulers Reinforced . | . . . . . Active Scanning Responses . | . . . . . Cargo Convoy Interrupts . | . . . . . Stealth | -11 -10 -10 -10 -9 --------- Run | Yrd Mat Min Exi Min Distress Signals 1 | . 1 . . . Communications Jammed . | . . . . . Distress Signals . | . . . . . Times Spotted 38 | . 18 6 . 14 Peak Tracking Total 12 | . 3 3 . 12 Tactical Retreats 1 | . 1 . . . Traps | -11 -10 -10 -10 -9 ------- Run | Yrd Mat Min Exi Min Traps Triggered 2 | . 2 . . . Indirectly . | . . . . . Trap Hack Attempts . | . . . . . Triggered . | . . . . . Disarmed . | . . . . . Reprogrammed . | . . . . . Reused . | . . . . . Traps Extracted . | . . . . . Installed . | . . . . . Triggered . | . . . . . Machines | -11 -10 -10 -10 -9 ---------- Run | Yrd Mat Min Exi Min Machines Disabled 13 | . 2 1 . 10 Max in Single Turn 10 | . 2 1 . 10 Machines Repaired . | . . . . . Machines Dismantled . | . . . . . Machines Sabotaged . | . . . . . Overloaded Fab Kills . | . . . . . Hacking | -11 -10 -10 -10 -9 --------- Run | Yrd Mat Min Exi Min Machines Accessed 9 | . 5 2 2 . Terminals 5 | . 4 1 . . Fabricators . | . . . . . Repair Stations . | . . . . . Recycling Units 1 | . 1 . . . Scanalyzers . | . . . . . Garrison Access . | . . . . . Total Hacks 17 | . 12 3 2 . Successful 11 | . 7 2 2 . Failed 6 | . 5 1 . . Catastrophic . | . . . . . Database Lockouts . | . . . . . Manual 5 | . 3 1 1 . Terminals 13 | . 11 2 . . Fabricators . | . . . . . Repair Stations . | . . . . . Recycling Units 1 | . 1 . . . Scanalyzers . | . . . . . Garrison Access . | . . . . . Terminal Hacks 8 | . 4 2 2 . Record 1 | . . . 1 . Open Door 1 | . . 1 . . Branch Access Points 1 | . 1 . . . Locate Traps 1 | . 1 . . . Transport Status 1 | . 1 . . . Registered Components 1 | . 1 . . . Zone Layout 1 | . . 1 . . Derelict Proto ID Bank 1 | . . . 1 . Fabricator Hacks . | . . . . . Repair Station Hacks . | . . . . . Recycling Unit Hacks 1 | . 1 . . . Report Inventory 1 | . 1 . . . Scanalyzer . | . . . . . Garrison Access Hacks . | . . . . . Unauthorized Hacks 2 | . 2 . . . Terminals 2 | . 2 . . . Botnet 2 | . 2 . . . Fabricators . | . . . . . Repair Stations . | . . . . . Recycling Units . | . . . . . Scanalyzers . | . . . . . Garrison Access . | . . . . . Data Cores Recovered . | . . . . . Used . | . . . . . Hacking Detections 4 | . 4 . . . Full Trace Events . | . . . . . Feedback Events . | . . . . . Feedback Blocked . | . . . . . Robot Schematics Acquired . | . . . . . Robots Built . | . . . . . Authchips . | . . . . . Time . | . . . . . Total Robot Build Rating . | . . . . . Part Schematics Acquired . | . . . . . Parts Built . | . . . . . Authchips . | . . . . . Time . | . . . . . Total Part Build Rating . | . . . . . Parts Repaired . | . . . . . Time . | . . . . . Parts Recycled . | . . . . . Recycled Matter . | . . . . . Retrieved Matter . | . . . . . Retrieved Components . | . . . . . Parts Scanalyzed . | . . . . . Part Schematics Acquired . | . . . . . Parts Damaged . | . . . . . Bothacking | -11 -10 -10 -10 -9 ------------ Run | Yrd Mat Min Exi Min Used RIF Installer . | . . . . . Robots Hacked . | . . . . . Non-combat . | . . . . . Combat . | . . . . . Robot Hacks Applied . | . . . . . Relay Couplers Released . | . . . . . Fabnet Peak Effective % . | . . . . . Robots Rewired . | . . . . . Allies Hacked . | . . . . . Hacks Repelled . | . . . . . Allies | -11 -10 -10 -10 -9 -------- Run | Yrd Mat Min Exi Min Total Allies . | . . . . . Largest Group . | . . . . . Highest-Rated Group . | . . . . . Highest-Rated Ally . | . . . . . Total Orders . | . . . . . Ally Attacks . | . . . . . Total Damage . | . . . . . Kills . | . . . . . Allies Corrupted . | . . . . . Allies Melted . | . . . . . Intel | -11 -10 -10 -10 -9 ------- Run | Yrd Mat Min Exi Min Robot Analysis Total . | . . . . . Derelict Logs Recovered . | . . . . . Drone Launches . | . . . . . Drone Recoveries . | . . . . . Exploration | -11 -10 -10 -10 -9 ------------- Run | Yrd Mat Min Exi Min Turns Passed 1950 | 133 1007 446 312 52 Spaces Moved 1188 | 76 552 304 230 26 Core 11 | 4 7 . . . Treads 419 | 72 347 . . . Legs . | . . . . . Wheels 758 | . 198 304 230 26 Hover . | . . . . . Flight . | . . . . . Fastest Speed 50 | 50 100 135 135 135 Average Speed 143 | 154 150 135 135 135 Slowest Speed 160 | 160 160 135 135 135 Overloaded Moves . | . . . . . Propulsion Burnouts . | . . . . . Robots Hopped . | . . . . . Cave-ins Triggered . | . . . . . Exploration Rate (%) 43 | 6 85 50 62 13 Regions Visited 4 Branch Regions 3 Pre-discovered Areas 1 | . . . 1 . Known Exits Taken 1 | . 1 . . . Unknown Exits Taken 3 | 1 . 1 1 . Scrap Searched 1 | . . 1 . . Spaces Dug 9 | . . 9 . . Terrain Destroyed 137 | . 42 63 . 32 Melee . | . . . . . Projectile . | . . . . . AOE 137 | . 42 63 . 32 Terrain Rammed . | . . . . . Walls Destroyed . | . . . . . Machines Disabled . | . . . . . Actions | -11 -10 -10 -10 -9 --------- Run | Yrd Mat Min Exi Min Total 1333 | 86 658 322 232 35 Wait 36 | . 36 . . . Move 1184 | 75 551 303 229 26 Hop . | . . . . . Pick Up 26 | 3 13 9 1 . Fast Attach 9 | 7 2 . . . Attach 9 | . 4 1 . 4 Detach 2 | . . . 2 . Swap 3 | . 3 . . . Drop 6 | . 6 . . . Fire 58 | 1 43 9 . 5 Melee . | . . . . . Ram . | . . . . . Kick . | . . . . . Crush . | . . . . . Escape Stasis . | . . . . . Rewire . | . . . . . Trap . | . . . . . Miscellaneous . | . . . . . Route ------- -11/Scrapyard -10/Materials (discovered 4 exits: [*Mat x3] / *Min) -10/Mines (discovered 3 exits: [*Mat] / *Exi / [Sub]) -10/Exiles -9/Mines History --------- Turn | Location | Event 13 | -11/Scrapyard | Discovered new exit (range 16) 134 | -11/Scrapyard | Entered Materials 304 | -10/Materials | Build established: Mutant 318 | -10/Materials | Discovered new exit (range 5) 611 | -10/Materials | Discovered new exit (range 3) 818 | -10/Materials | Core integrity fell below 50% 858 | -10/Materials | Core integrity fell below 20% 870 | -10/Materials | Lost 5 parts (1p2n2w) 925 | -10/Materials | Discovered new exit (range 4) 1005 | -10/Materials | Identified exit to Mines 1141 | -10/Materials | Entered Mines 1166 | -10/Mines | Discovered new exit (range 15) 1540 | -10/Mines | Discovered new exit (range 9) 1541 | -10/Mines | Met a Derelict shopkeep closing up shop 1581 | -10/Mines | Deemed a non-threat by the Exiles lab entrance 1581 | -10/Mines | Discovered new exit (range 5) 1587 | -10/Mines | Entered Exiles 1621 | -10/Exiles | Met 8R-AWN 1644 | -10/Exiles | Met EX-HEX 1691 | -10/Exiles | Met EX-BIN 1728 | -10/Exiles | Aligned with FarCom system 1729 | -10/Exiles | Given EX-Vault access code 1763 | -10/Exiles | Opened EX-Vault 1771 | -10/Exiles | Found Cloak of Protection 1799 | -10/Exiles | Warned to stay clear of 0b10 Research branches 1819 | -10/Exiles | Exiles lab attacked by MAIN.C 1846 | -10/Exiles | Learned location of Zion (-6) 1885 | -10/Exiles | Discovered new exit (range 11) 1899 | -10/Exiles | Left Exiles lab with Cloak of Protection 1899 | -10/Exiles | Entered Mines 1932 | -9/Mines | Assembled infested the area 1937 | -9/Mines | Assisted by a Guerilla fighting off Assembled 1951 | -9/Mines | Destroyed by as-09500 with Assembled Blade Last Messages --------------- 01900_ Plasma Injector explodes. 01900_ G-34 Mercenary destroyed. 01900_ Plasma Injector explodes. 01900_ Seismic Survey Station disabled. 01908_ B-36 Bruiser heat short circuits Lgt. Treads. 01917_ B-36 Bruiser destroyed. 01919_ Acquired 17 matter. 01932_ ALERT: Infestation in the mines, dispatching Demolisher response squad. 01937_ A derelict emerges from the shadows: "You need to get out of here! I've been tracking a group of Assembled to figure out where they're coming from, and they're closing on this area, come on!" 01938_ 5B-KX0(h): "I'll hold them off! Go on ahead or try to find another way!" 01938_ HV Slug penetrates as-26663. 01941_ HV Slug penetrates Wall. 01942_ 5B-KX0(h) Fission Core severed. 01943_ 5B-KX0(h) destroyed. 01946_ as-26663 destroyed. 01949_ Destroyed Asb. F-torch. Map ----- +----------------------------------------------------+ | ??????????????????????????????? | | ??????????????????????????????? | | ??????????????????????????????? | | ??????????????????????????????? | | ??????????????????????????????? | | ??????????????????????????????? | | ??????????????????????????????? | | ??????????????????###########?? | | ??????????????################? | | ??????????????######"" " ""#### | | ?????????????## ### | | ?????????????## "" ;## | | ?????????????## "" ;## | | ????????????### ;## | | ????????????### ### | | ????????????##; ;## | | ????????????##; ##? | | ????????????##; ##? | | ????????????### ### | | ????????????### = ### | | ????????????### ;## | | ????????????## ;## | | ????????????## ;## | | ????????????### ; # | | ????????????### ;## | | ????????????##; @ ;## | | ????????????### a ;## | | ????????????######;;;; #;;### | | ?????????????########## ###### | | ????????????????#######aa#####? | | ??????????????????### ###??? | | ??????????????????## ###??? | | ??????????????????## %! ##??? | | ??????????????????### a% ###?? | | ??????????????????### a ###? | | ?????????????g?????# ##? | | ???????????????gg a ##? | | ?????????????????#### % ##? | | ?????????????????##### ###? | | ???????????????????####" #####? | | ????????????????????#### ####?? | | ??????????????????????## ##???? | | ???????????????????????# ???? | | ???????????????????????## ????? | | ???????????????????????## ????? | | ????????????????????????? ????? | | ??????????????????????????????? | | ??????????????????????????????? | | ??????????????????????????????? | | ??????????????????????????????? | +----------------------------------------------------+ Best States ------------- Heat Dissipation 25 Energy Generation 14 Energy Capacity 250 Matter Stores 300 Matter Capacity 300 Sight Range 16 Terrain Scan Density 10 Evasion (%) 40 Recoil Reduction 2 Item Schematics ----------------- None Robot Schematics ------------------ None Fabricated ------------ Nothing Alien Tech Used ----------------- None Achievements -------------- None Challenges ------------ None Game ------ Seed HugeReflectiveReplicator Manual? 0 Play Time 00:18:05 Cumulative 42.2 hours Start 2024.06.29 @ 20:10:05 End 2024.06.29 @ 20:27:56 Sessions 1 Manual Loads 0 Difficulty Rogue Special Mode None Game No. 73 Rogue 73 Adventurer 0 Explorer 0 Win Type - Total 0 Types 0/0/0/0/0/0/0/0/0 Lore% 26 Gallery% 26 Achievement% 28 Wizard Run 0 Options --------- Layout 0 ASCII 0 Keyboard 0 Movement Arrows Keybinds 0 Fullscreen 2 Font 18/SmallcapsGlow Map View 76x50 Zoom Use 0% Tactical HUD 1 Map Filters NONE Filters NONE Steam 1 RUN: a95e5e3f-b3e0-4971-a121-b47afdc91e87